bitfinex/quotes_SOLUSD_20240813
["timestamp","ask_amount","ask_price","bid_price","bid_amount"]
[1723533021855,1.65626005,146.59,146.54,22.4417]
[1723533022055,12.52,146.58,146.5,22.2169]
[1723533022275,1.65626005,146.57,146.51,20.0]
[1723533022781,12.52,146.6,146.51,20.0]
[1723533023269,12.52,146.58,146.52,0.25098]
[1723533023777,12.52,146.58,146.51,45.25098]
[1723533024167,12.52,146.58,146.5,22.2169]
[1723533024589,14.17626005,146.58,146.5,22.2169]
[1723533024758,12.52,146.58,146.5,22.2169]
[1723533024963,12.52,146.56,146.5,22.2169]
[1723533025786,14.17626005,146.56,146.5,22.2169]
[1723533025998,1.65626005,146.56,146.5,22.2169]
[1723533026177,1.65626005,146.56,146.51,0.12549]
[1723533026509,1.65626005,146.55,146.46,22.4961]
[1723533026693,1.65626005,146.54,146.46,22.4961]
[1723533027000,8.48036005,146.54,146.46,22.4961]
[1723533027800,8.48036005,146.54,146.42,21.741]
[1723533027801,6.8251,146.52,146.42,21.741]
[1723533028164,31.35,146.52,146.42,21.741]
[1723533028367,38.175,146.52,146.42,21.741]
[1723533029191,31.35,146.54,146.42,21.741]
[1723533029897,8.48086005,146.53,146.43,65.25098]
[1723533030103,8.48086005,146.53,146.44,0.12549]
[1723533030271,38.1741,146.54,146.44,0.25098]
[1723533030474,1.65626005,146.53,146.45,0.25098]
[1723533030673,8.48116005,146.53,146.45,0.12549]
[1723533030876,31.35,146.54,146.44,0.37647]
[1723533031091,31.35,146.54,146.45,0.12549]
[1723533031291,38.1741,146.54,146.45,0.12549]
[1723533031695,38.1741,146.54,146.45,0.25098]
[1723533031998,38.1741,146.54,146.46,0.12549]
[1723533032488,6.8241,146.54,146.46,0.12549]
[1723533032890,1.65626005,146.53,146.46,0.12549]
[1723533033283,8.48106005,146.53,146.46,0.12549]
[1723533033478,6.8241,146.54,146.46,0.12549]
[1723533033790,6.8255,146.51,146.45,0.12549]
[1723533034003,1.65626005,146.5,146.44,0.37647]
[1723533035120,1.65626005,146.52,146.45,0.12549]
[1723533035411,38.29939,146.55,146.45,0.12549]
[1723533035719,6.8241,146.54,146.45,0.12549]
[1723533036292,6.8245,146.53,146.44,0.37647]
[1723533037196,6.8262,146.5,146.43,20.0]
[1723533037402,1.65626005,146.49,146.43,20.0]
[1723533037708,1.65626005,146.48,146.43,20.0]
[1723533038088,1.65626005,146.48,146.42,21.741]
[1723533038395,38.1755,146.51,146.42,21.741]
[1723533039809,31.35,146.51,146.43,45.25098]
[1723533039991,31.35,146.51,146.43,0.12549]
[1723533040307,1.65626005,146.5,146.43,0.12549]
[1723533040510,6.8259,146.5,146.43,0.12549]
[1723533041088,1.65626005,146.49,146.43,0.12549]
[1723533041284,8.48216005,146.5,146.43,0.12549]
[1723533041501,6.8259,146.5,146.43,0.12549]
[1723533042409,6.8264,146.49,146.42,21.741]
[1723533042586,1.65626005,146.48,146.43,0.12549]
[1723533043379,1.65626005,146.48,146.38,31.35]
[1723533043584,6.8264,146.49,146.39,20.0]
[1723533043585,6.8273,146.47,146.39,20.0]
[1723533043791,6.95239,146.48,146.39,20.0]
[1723533044284,6.95239,146.48,146.38,20.0]
[1723533044884,6.95239,146.48,146.39,0.12549]
[1723533045106,6.8274,146.47,146.39,0.12549]
[1723533045411,39.83366005,146.47,146.39,0.12549]
[1723533046287,39.83366005,146.47,146.39,45.12549]
[1723533046717,1.65626005,146.47,146.39,45.12549]
[1723533046886,31.35,146.49,146.4,0.12549]
[1723533047088,31.35,146.49,146.4,0.37647]
[1723533047300,31.35,146.49,146.41,0.12549]
[1723533047607,31.35,146.49,146.41,0.25098]
[1723533047915,15.4956,146.5,146.42,12.55]
[1723533048086,19.3756,146.51,146.43,51.15379]
[1723533048410,19.3756,146.51,146.44,0.12549]
[1723533048709,23.0583,146.54,146.44,0.37647]
[1723533048892,29.0063,146.54,146.45,12.55]
[1723533049093,16.4563,146.54,146.46,0.25098]
[1723533049295,16.4563,146.54,146.46,45.25098]
[1723533049485,19.3732,146.56,146.47,12.55]
[1723533049690,19.3732,146.56,146.48,0.12549]
[1723533049887,6.8236,146.55,146.48,45.12549]
[1723533050307,12.55,146.56,146.48,45.12549]
[1723533050488,28.5021,146.58,146.49,18.7834]
[1723533050691,28.5021,146.58,146.5,45.12549]
[1723533050995,6.8226,146.57,146.5,45.12549]
[1723533051299,35.3243,146.58,146.5,45.12549]
[1723533051888,22.7743,146.58,146.5,45.12549]
[1723533052097,15.9521,146.58,146.5,61.19359]
[1723533052315,6.8218,146.59,146.5,61.19359]
[1723533053001,31.34,146.6,146.5,61.19359]
[1723533053002,6.8222,146.58,146.5,61.19359]
[1723533054592,6.8218,146.59,146.5,61.19359]
[1723533054789,6.8217,146.6,146.52,0.12549]
[1723533055102,6.8217,146.6,146.52,0.25098]
[1723533055301,6.8217,146.6,146.53,0.25098]
[1723533055508,8.47796005,146.6,146.54,0.12549]
[1723533055721,6.8217,146.59,146.54,0.12549]
[1723533056801,6.8213,146.6,146.54,0.12549]
[1723533057437,31.34,146.62,146.54,0.25098]
[1723533057726,16.66753724,146.65,146.56,16.5888]
[1723533057926,16.66753724,146.65,146.57,0.12549]
[1723533058623,6.8197,146.64,146.57,0.12549]
[1723533058833,6.8199,146.63,146.57,45.12549]
[1723533060303,6.8194,146.64,146.58,0.12549]
[1723533060900,6.8199,146.63,146.58,0.12549]
[1723533061099,6.8199,146.63,146.57,45.12549]
[1723533061301,8.47656005,146.62,146.57,45.12549]
[1723533061598,31.34,146.64,146.56,16.5888]
[1723533061796,31.34,146.62,146.52,22.7838]
[1723533062014,6.8227,146.57,146.52,22.7838]
[1723533062205,1.65626005,146.56,146.52,22.7838]
[1723533062408,38.1622,146.58,146.52,22.7838]
[1723533062609,31.34,146.62,146.52,22.7838]
[1723533063035,6.8213,146.6,146.52,22.7838]
[1723533063348,6.8232,146.56,146.52,22.7838]
[1723533063712,31.34,146.6,146.52,22.7838]
[1723533065036,38.1612,146.6,146.53,0.12549]
[1723533065241,0.12549,146.62,146.53,46.49029222]
[1723533065242,38.28619,146.62,146.53,46.49029222]
[1723533065417,6.8209,146.61,146.53,45.25098]
[1723533065615,6.8209,146.61,146.53,46.61569897]
[1723533065932,6.8209,146.61,146.53,45.25098]
[1723533066124,6.8209,146.61,146.54,0.12549]
[1723533066329,6.8209,146.61,146.54,0.25098]
[1723533066520,6.8209,146.61,146.55,0.12549]
[1723533068050,1.65626005,146.6,146.55,0.12549]
[1723533068352,6.8213,146.6,146.55,0.12549]
[1723533070844,6.8218,146.59,146.55,0.12549]
[1723533071042,8.47806005,146.59,146.55,0.12549]
[1723533071340,6.8218,146.59,146.55,0.12549]
[1723533071537,6.8218,146.59,146.54,0.12549]
[1723533073323,8.47856005,146.58,146.54,0.12549]
[1723533073542,1.65626005,146.57,146.54,0.12549]
[1723533074130,1.65626005,146.56,146.53,0.12549]
[1723533074354,6.8223,146.58,146.53,0.12549]
[1723533074528,8.47806005,146.59,146.53,0.12549]
[1723533075324,6.8226,146.57,146.53,0.12549]
[1723533075550,6.8223,146.58,146.53,0.12549]
[1723533077153,31.34,146.6,146.53,0.12549]
[1723533077473,6.8208,146.61,146.53,46.86665819]
[1723533078249,6.8215,146.6,146.53,45.50196]
[1723533078952,8.47776005,146.6,146.53,45.50196]
[1723533079151,31.34,146.6,146.53,0.12549]
[1723533079374,6.8225,146.58,146.52,22.7838]
[1723533079530,6.8233,146.56,146.52,22.7838]
[1723533079728,6.8228,146.57,146.52,22.7838]
[1723533080135,8.47906005,146.57,146.52,22.7838]
[1723533080337,6.8231,146.56,146.52,22.7838]
[1723533080664,1.65626005,146.57,146.52,22.7838]
[1723533080665,38.1625,146.58,146.52,22.7838]
[1723533081541,6.8212,146.61,146.52,22.7838]
[1723533081854,26.8213,146.6,146.53,45.25098]
[1723533082158,1.65626005,146.59,146.53,0.12549]
[1723533082458,6.8223,146.58,146.53,0.12549]
[1723533085257,6.822,146.59,146.53,0.12549]
[1723533085438,26.8213,146.6,146.53,45.25098]
[1723533085637,31.34,146.62,146.54,1.36469315]
[1723533085863,6.8212,146.61,146.55,0.12549]
[1723533086359,6.8213,146.6,146.54,0.12549]
[1723533086528,8.47816005,146.59,146.54,0.12549]
[1723533087637,6.8219,146.59,146.54,0.12549]
[1723533092637,31.34,146.62,146.54,0.12549]
[1723533092836,38.1607,146.62,146.54,0.25098]
[1723533093169,6.821,146.61,146.54,0.25098]
[1723533093536,6.8213,146.6,146.54,0.25098]
[1723533093735,1.65626005,146.59,146.54,0.25098]
[1723533093957,8.47796005,146.59,146.54,0.12549]
[1723533094264,19.3526,146.58,146.52,22.7838]
[1723533094633,8.47896005,146.57,146.52,22.7838]
[1723533094856,6.8227,146.57,146.52,22.7838]
[1723533095430,6.8227,146.57,146.53,0.12549]
[1723533096450,19.3534,146.56,146.52,22.7838]
[1723533096756,1.65626005,146.55,146.52,22.7838]
[1723533096936,12.53,146.56,146.52,22.7838]
[1723533097340,1.65626005,146.55,146.52,22.7838]
[1723533097541,12.53,146.56,146.52,22.7838]
[1723533097778,6.8227,146.57,146.52,22.7838]
[1723533098645,8.47896005,146.57,146.52,22.7838]
[1723533098844,8.47896005,146.57,146.51,0.12549]
[1723533099384,8.47896005,146.57,146.5,45.25098]
[1723533099672,8.47896005,146.57,146.5,0.25098]
[1723533102280,8.47896005,146.57,146.5,0.12549]
[1723533102785,6.8227,146.57,146.5,0.12549]
[1723533103278,8.47896005,146.57,146.5,0.12549]
[1723533105352,6.8232,146.56,146.5,0.12549]
[1723533105558,1.65626005,146.55,146.5,0.12549]
[1723533105777,1.65626005,146.54,146.5,0.12549]
[1723533106760,1.65626005,146.55,146.5,0.12549]
[1723533106968,1.65626005,146.54,146.5,0.12549]
[1723533107475,6.8227,146.57,146.5,0.12549]
[1723533108083,6.8222,146.58,146.5,0.25098]
[1723533108301,6.8222,146.58,146.51,0.25098]
[1723533108459,6.8222,146.58,146.52,0.12549]
[1723533109469,6.8218,146.59,146.53,22.8875]
[1723533109664,0.10053724,146.62,146.54,0.12549]
[1723533109989,0.10053724,146.62,146.57,23.01299]
[1723533110198,0.10053724,146.62,146.59,0.12549]
[1723533110402,0.10053724,146.62,146.6,32.70399187]
[1723533110694,0.10053724,146.62,146.61,46.74032713]
[1723533110988,0.10053724,146.62,146.61,46.86581713]
[1723533112090,0.10053724,146.62,146.61,45.50196]
[1723533113058,0.10053724,146.62,146.61,46.86584683]
[1723533113288,0.10053724,146.62,146.61,45.50196]
[1723533113697,257.4,146.73,146.62,6.5059]
[1723533113872,6.8162,146.71,146.64,15.8514]
[1723533114191,6.8162,146.71,146.65,0.12549]
[1723533116501,6.8166,146.7,146.65,0.12549]
[1723533119292,6.8162,146.71,146.65,0.12549]
[1723533120399,6.8166,146.7,146.65,0.12549]
[1723533121072,6.8162,146.71,146.65,0.12549]
[1723533121300,6.8162,146.71,146.65,45.25098]
[1723533121885,6.8157,146.72,146.65,45.25098]
[1723533122214,31.34,146.76,146.66,1.61458862]
[1723533122378,31.34,146.76,146.67,0.25098]
[1723533122379,6.8146,146.75,146.67,0.25098]
[1723533122701,6.8153,146.73,146.67,0.25098]
[1723533122900,6.8152,146.73,146.67,0.25098]
[1723533123503,8.47206005,146.72,146.67,0.25098]
[1723533123803,1.65626005,146.71,146.67,0.25098]
[1723533123976,8.47286005,146.7,146.64,15.8514]
[1723533124173,38.1561,146.72,146.65,0.12549]
[1723533124367,39.81236005,146.72,146.65,45.37647]
[1723533124566,31.34,146.72,146.65,0.12549]
[1723533124768,31.34,146.7,146.62,6.5059]
[1723533125003,6.8185,146.66,146.62,6.5059]
[1723533125299,6.8181,146.67,146.62,6.5059]
[1723533126101,6.8176,146.68,146.62,6.5059]
[1723533126484,6.8176,146.68,146.63,0.12549]
[1723533127999,38.1569,146.7,146.63,0.12549]
[1723533128169,38.1569,146.7,146.63,45.37647]
[1723533128170,6.8169,146.7,146.63,45.37647]
[1723533130501,6.8173,146.69,146.63,45.37647]
[1723533130704,48.3798,146.72,146.63,0.12549]
[1723533130996,6.818,146.67,146.63,0.12549]
[1723533131172,6.818,146.67,146.62,6.5059]
[1723533132900,6.818,146.67,146.63,0.12549]
[1723533133075,18.82395005,146.7,146.62,6.5059]
[1723533133271,6.8198,146.64,146.6,16.2003]
[1723533133701,6.819,146.65,146.6,16.2003]
[1723533134294,1.65626005,146.64,146.6,16.2003]
[1723533134510,6.819,146.65,146.6,16.2003]
[1723533134684,6.819,146.65,146.61,0.12549]
[1723533135081,31.34,146.66,146.61,0.12549]
[1723533135410,51.34,146.69,146.61,0.12549]
[1723533135790,6.818,146.67,146.61,0.12549]
[1723533136093,1.65626005,146.66,146.61,0.37647]
[1723533136415,8.47476005,146.66,146.61,0.12549]
[1723533136705,6.8185,146.66,146.61,0.12549]
[1723533138281,1.65626005,146.65,146.61,0.12549]
[1723533139311,6.8185,146.66,146.61,0.12549]
[1723533139884,20.0,146.69,146.61,0.12549]
[1723533140088,20.0,146.7,146.61,45.25098]
[1723533140306,6.818,146.67,146.61,45.25098]
[1723533142796,6.8185,146.66,146.61,45.25098]
[1723533146613,20.0,146.7,146.62,1.36397326]
[1723533146793,6.8175,146.68,146.63,0.12549]
[1723533147506,6.8181,146.67,146.63,0.12549]
[1723533147697,6.8181,146.67,146.62,0.25098]
[1723533153819,20.0,146.7,146.62,0.25098]
[1723533154011,32.52,146.7,146.62,0.25098]
[1723533154602,6.8178,146.68,146.62,0.25098]
[1723533154807,6.8178,146.68,146.62,0.12549]
[1723533154808,12.52,146.68,146.62,0.12549]
[1723533155216,6.8181,146.67,146.62,0.12549]
[1723533157920,6.8176,146.68,146.62,0.37647]
[1723533158632,6.8181,146.67,146.62,0.25098]
[1723533158802,6.8181,146.67,146.62,0.12549]
[1723533162715,6.8189,146.65,146.62,0.12549]
[1723533163042,6.8189,146.65,146.61,0.12549]
[1723533163208,12.52,146.68,146.61,0.12549]
[1723533163209,6.8185,146.66,146.61,0.12549]
[1723533163409,6.8185,146.66,146.6,16.2003]
[1723533163628,19.11298974,146.69,146.6,16.2003]
[1723533163836,24.81588974,146.69,146.61,45.12549]
[1723533164503,6.818,146.68,146.61,45.12549]
[1723533164907,6.818,146.68,146.62,0.12549]
[1723533166742,6.818,146.68,146.62,1.48938039]
[1723533166941,6.818,146.68,146.62,0.12549]
[1723533167423,6.8182,146.67,146.62,0.12549]
[1723533171256,12.29443456,146.69,146.64,6.056]
[1723533171421,6.8165,146.71,146.65,0.12549]
[1723533171622,6.8174,146.69,146.65,0.12549]
[1723533171924,6.8176,146.68,146.65,0.12549]
[1723533173227,6.8172,146.69,146.65,0.12549]
[1723533178341,6.8166,146.7,146.65,0.12549]
[1723533180754,6.8166,146.7,146.65,45.12549]
[1723533181846,6.8175,146.69,146.65,0.12549]
[1723533182756,6.8176,146.68,146.65,0.12549]
[1723533182981,12.29326842,146.72,146.64,6.056]
[1723533182982,8.47426005,146.67,146.64,6.056]
[1723533183861,6.8175,146.68,146.64,6.056]
[1723533184566,14.17626005,146.67,146.6,22.6105]
[1723533184871,6.8185,146.66,146.6,22.6105]
[1723533185179,8.47536005,146.65,146.6,22.6105]
[1723533185369,1.65626005,146.64,146.6,22.6105]
[1723533185747,1.65626005,146.64,146.5,12.52]
[1723533185748,0.12549,146.63,146.5,12.52]
[1723533185970,0.12549,146.63,146.44,127.33214228]
[1723533185971,12.52,146.62,146.53,6.0989]
[1723533186747,6.8199,146.63,146.54,12.52]
[1723533187166,6.8199,146.63,146.55,0.12549]
[1723533187354,6.8199,146.63,146.55,0.25098]
[1723533188173,6.8199,146.63,146.56,0.25098]
[1723533188377,6.8199,146.63,146.57,0.12549]
[1723533189662,6.8204,146.62,146.57,0.12549]
[1723533189987,6.8204,146.62,146.56,0.25098]
[1723533195994,6.8208,146.61,146.56,0.25098]
[1723533196152,34.17626005,146.64,146.56,0.12549]
[1723533196153,8.47756005,146.6,146.56,0.12549]
[1723533196455,6.8222,146.58,146.53,6.0989]
[1723533196661,8.47886005,146.57,146.53,6.0989]
[1723533196882,8.47836005,146.59,146.53,6.0989]
[1723533197182,6.8221,146.59,146.53,6.0989]
[1723533197392,1.65626005,146.58,146.53,6.0989]
[1723533197596,1.65626005,146.57,146.53,6.0989]
[1723533197756,8.47896005,146.57,146.53,6.0989]
[1723533198579,6.8227,146.57,146.49,18.6223]
[1723533199284,1.65626005,146.56,146.49,6.1023]
[1723533199455,1.65626005,146.56,146.49,18.6223]
[1723533199658,6.8227,146.57,146.49,18.6223]
[1723533199981,6.8231,146.56,146.49,6.1023]
[1723533200170,6.8231,146.56,146.5,20.0]
[1723533200171,6.8247,146.53,146.5,20.0]
[1723533200475,6.8227,146.57,146.5,20.0]
[1723533200678,6.8222,146.58,146.5,20.0]
[1723533200861,16.0815,146.59,146.51,12.52]
[1723533201067,6.8208,146.61,146.53,12.52]
[1723533201373,8.47756005,146.6,146.54,0.12549]
[1723533202384,6.8217,146.59,146.54,0.12549]
[1723533202692,1.65626005,146.58,146.54,0.12549]
[1723533202987,1.65626005,146.57,146.53,0.12549]
[1723533203868,6.8203,146.62,146.54,6.1971]
[1723533204093,6.8198,146.64,146.56,12.52]
[1723533204383,6.8198,146.64,146.58,12.52]
[1723533205096,6.8199,146.63,146.58,12.52]
[1723533205465,2.72721713,146.65,146.57,12.64549]
[1723533205783,2.72721713,146.65,146.58,45.0]
[1723533205999,20.0,146.66,146.59,0.12549]
[1723533206354,6.8196,146.64,146.59,0.12549]
[1723533206979,19.14876918,146.67,146.59,12.64549]
[1723533207281,19.14876918,146.67,146.6,45.0]
[1723533207282,6.8183,146.67,146.6,45.0]
[1723533207585,6.8183,146.67,146.61,0.12549]
[1723533207790,6.8185,146.66,146.61,0.12549]
[1723533210398,6.8181,146.67,146.61,0.12549]
[1723533210691,12.52,146.7,146.61,12.89647]
[1723533210896,12.52,146.72,146.63,15.398]
[1723533211191,6.8166,146.7,146.64,0.25098]
[1723533211371,6.8166,146.7,146.64,45.25098]
[1723533211705,6.8161,146.71,146.64,45.25098]
[1723533211994,6.8166,146.7,146.64,45.25098]
[1723533212597,1.65626005,146.69,146.63,15.398]
[1723533213803,6.8176,146.68,146.63,15.398]
[1723533213995,1.65626005,146.67,146.64,0.12549]
[1723533215099,7.11264372,146.74,146.67,0.12549]
[1723533215290,29.44610243,146.76,146.67,45.50196]
[1723533215489,29.44610243,146.76,146.69,0.12549]
[1723533215713,29.44610243,146.76,146.69,1.61404654]
[1723533215899,29.44610243,146.76,146.7,0.12549]
[1723533216087,36.26010243,146.76,146.7,0.12549]
[1723533216591,19.334,146.76,146.7,0.12549]
[1723533217102,6.8144,146.75,146.7,0.12549]
[1723533217313,19.3339,146.76,146.7,0.37647]
[1723533217888,273.4493,146.82,146.72,15.5886]
[1723533218114,17.8677682,146.83,146.72,15.5886]
[1723533218115,32.0908682,146.83,146.73,45.50196]
[1723533218325,0.8408682,146.83,146.73,45.50196]
[1723533218818,6.8111,146.82,146.73,45.50196]
[1723533219139,0.8408682,146.83,146.76,6.5515]
[1723533219304,0.8408682,146.83,146.77,45.50196]
[1723533220220,0.8408682,146.83,146.76,6.5515]
[1723533220544,6.812,146.8,146.76,6.5515]
[1723533220907,6.8115,146.81,146.76,6.5515]
[1723533221699,6.8115,146.81,146.77,0.12549]
[1723533222321,6.8115,146.81,146.77,45.12549]
[1723533222719,38.0611,146.82,146.77,45.12549]
[1723533223232,7.6514682,146.83,146.77,45.12549]
[1723533223433,7.6514682,146.83,146.78,1.3623654]
[1723533223638,7.6514682,146.83,146.79,0.12549]
[1723533223856,7.6514682,146.83,146.77,45.12549]
[1723533224433,0.8408682,146.83,146.78,0.37647]
[1723533224633,7.6514682,146.83,146.79,0.25098]
[1723533224848,7.6514682,146.83,146.79,0.12549]
[1723533226513,6.811,146.82,146.79,0.12549]
[1723533227025,0.8408682,146.83,146.79,0.25098]
[1723533227214,0.8408682,146.83,146.8,0.12549]
[1723533229110,0.8408682,146.83,146.79,45.25098]
[1723533229315,7.6514682,146.83,146.79,45.12549]
[1723533229733,0.8408682,146.83,146.79,45.12549]
[1723533229928,0.8408682,146.83,146.8,0.25098]
[1723533230131,0.8408682,146.83,146.81,0.12549]
[1723533232030,0.8408682,146.83,146.81,1.6130168]
[1723533232208,0.8408682,146.83,146.82,6.46027]
[1723533232411,0.8408682,146.83,146.82,51.58576]
[1723533239350,6.806,146.93,146.83,0.12549]
[1723533239546,6.806,146.93,146.83,66.61234385]
[1723533239742,6.806,146.93,146.85,0.12549]
[1723533240055,6.806,146.93,146.85,1.61235183]
[1723533240240,31.25,146.95,146.86,0.25098]
[1723533240444,6.8069,146.91,146.87,0.25098]
[1723533240641,6.8069,146.91,146.88,0.12549]
[1723533240940,6.8069,146.91,146.88,0.25098]
[1723533241137,6.8065,146.92,146.88,0.25098]
[1723533241455,6.8065,146.92,146.89,0.12549]
[1723533241642,6.806,146.93,146.89,0.12549]
[1723533242160,6.806,146.93,146.89,0.25098]
[1723533242943,6.8055,146.94,146.89,0.25098]
[1723533245461,31.25,146.93,146.8,31.25]
[1723533245644,31.25,146.93,146.83,20.0]
[1723533245830,6.8063,146.93,146.83,51.25]
[1723533246030,6.8064,146.92,146.83,20.0]
[1723533246237,6.8055,146.94,146.83,20.0]
[1723533246462,31.25,146.93,146.78,2.82003901]
[1723533246644,6.8074,146.9,146.79,31.25]
[1723533246845,38.0569,146.91,146.83,0.12549]
[1723533247052,31.25,146.91,146.83,0.12549]
[1723533247348,6.8065,146.92,146.83,0.12549]
[1723533247742,6.8069,146.91,146.84,0.12549]
[1723533248626,6.8076,146.9,146.83,0.25098]
[1723533248860,6.8078,146.89,146.83,0.25098]
[1723533250177,6.8073,146.9,146.83,0.25098]
[1723533250349,6.8073,146.9,146.85,0.12549]
[1723533250571,6.8073,146.9,146.85,0.25098]
[1723533250779,19.264044,146.97,146.87,0.12549]
[1723533250971,6.8049,146.96,146.87,45.37647]
[1723533251166,6.8049,146.96,146.88,0.12549]
[1723533251383,6.8049,146.96,146.89,0.12549]
[1723533251684,6.8049,146.96,146.89,0.37647]
[1723533251873,6.8049,146.96,146.9,0.12549]
[1723533252284,6.8041,146.97,146.91,0.12549]
[1723533252483,7.6444682,146.98,146.92,0.12549]
[1723533252691,7.6444682,146.98,146.92,0.50196]
[1723533252995,6.8041,146.97,146.92,0.50196]
[1723533253202,0.8408682,146.98,146.92,0.50196]
[1723533253576,7.6445682,146.98,146.92,0.50196]
[1723533255005,7.6445682,146.98,146.92,21.85676]
[1723533255177,7.6445682,146.98,146.94,0.12549]
[1723533255369,7.6445682,146.98,146.94,0.50196]
[1723533258202,0.8408682,146.98,146.94,0.50196]
[1723533258696,0.8408682,146.98,146.96,0.12549]
[1723533258907,0.8408682,146.98,146.96,1.8625199]
[1723533259593,7.6444682,146.98,146.96,0.37647]
[1723533259800,7.6444682,146.98,146.96,0.25098]
[1723533260290,6.8041,146.97,146.96,0.12549]
[1723533261098,0.8408682,146.98,146.96,0.12549]
[1723533261781,0.8408682,146.98,146.95,0.37647]
[1723533262314,7.6444682,146.98,146.95,0.37647]
[1723533262509,6.8041,146.97,146.95,0.12549]
[1723533262796,7.6445682,146.98,146.94,0.37647]
[1723533263997,0.8408682,146.98,146.95,0.12549]
[1723533264176,0.8408682,146.98,146.94,0.37647]
[1723533265187,0.8408682,146.98,146.95,0.12549]
[1723533268301,7.6445682,146.98,146.94,0.37647]
[1723533269513,0.8408682,146.98,146.94,0.37647]
[1723533270235,0.8408682,146.98,146.92,21.3548]
[1723533270515,12.46,146.97,146.89,21.8153]
[1723533270889,19.2644,146.97,146.89,21.8153]
[1723533271088,7.6445682,146.98,146.9,12.46]
[1723533271486,0.8408682,146.98,146.91,0.25098]
[1723533271694,0.8408682,146.98,146.93,0.12549]
[1723533272010,0.8408682,146.98,146.93,0.25098]
[1723533272216,0.8408682,146.98,146.94,0.25098]
[1723533272518,0.8408682,146.98,146.95,0.25098]
[1723533272681,0.8408682,146.98,146.96,0.12549]
[1723533272883,0.8408682,146.98,146.96,0.25098]
[1723533273088,0.8408682,146.98,146.96,0.12549]
[1723533275130,0.8408682,146.98,146.96,0.37647]
[1723533275496,0.8408682,146.98,146.97,0.25098]
[1723533275800,0.8408682,146.98,146.97,0.50196]
[1723533286431,0.8408682,146.98,146.97,1.86210762]
[1723533287505,6.8005,147.05,146.98,22.6758]
[1723533287732,16.2964,147.09,146.98,22.6758]
[1723533287733,6.7998,147.07,147.0,0.12549]
[1723533289309,0.8408682,147.13,147.05,0.12549]
[1723533289514,6.7981,147.1,147.05,45.50196]
[1723533289711,6.7977,147.11,147.05,45.50196]
[1723533290402,12.46,147.1,147.05,0.12549]
[1723533290608,19.2591,147.08,147.05,0.12549]
[1723533290914,15.5257,147.11,147.05,0.12549]
[1723533291242,6.7975,147.12,147.06,0.12549]
[1723533291437,13.3008682,147.13,147.06,0.25098]
[1723533291618,6.7981,147.1,147.06,0.25098]
[1723533291852,19.2576,147.11,147.07,0.12549]
[1723533292138,6.7981,147.1,147.07,0.25098]
[1723533292351,12.46,147.09,147.07,0.12549]
[1723533292632,19.2581,147.1,147.07,0.12549]
[1723533293041,12.46,147.1,147.07,0.12549]
[1723533293430,19.2581,147.1,147.06,0.37647]
[1723533293616,6.7985,147.09,147.06,0.25098]
[1723533295248,19.2581,147.1,147.06,0.25098]
[1723533295845,12.46,147.1,147.06,0.25098]
[1723533298429,6.7976,147.11,147.07,0.25098]
[1723533298633,6.7976,147.11,147.08,0.25098]
[1723533300414,12.46,147.1,147.01,22.4965]
[1723533300623,19.2591,147.08,147.01,22.4965]
[1723533301041,0.8408682,147.13,147.01,22.4965]
[1723533301356,12.46,147.08,147.01,22.4965]
[1723533302154,12.46,147.08,147.02,0.37647]
[1723533302331,12.46,147.08,147.03,0.25098]
[1723533302663,19.2577,147.11,147.05,0.12549]
[1723533302956,20.0978682,147.13,147.05,0.25098]
[1723533303165,20.0978682,147.13,147.06,0.12549]